[Event "2026 European Womens Championship"]
[Site "Batumi, GE"]
[Date "2026.05.26"]
[Round "2"]
[White "Rapport, Jovana"]
[Black "Narva, Mai"]
[Result "0-1"]
[Board "5"]
[TimeControl "5400+30"]
[WhiteFideId "937266"]
[BlackFideId "4500512"]
[WhiteElo "2235"]
[BlackElo "2426"]
[WhiteTitle "WGM"]
[BlackTitle "IM"]
[WhiteClock "0:22:49"]
[BlackClock "0:18:34"]
[Variant "Standard"]

1. e4 {[%clk 1:28:51]}  c6 {[%clk 1:30:35]} 2. Nc3 {[%clk 1:28:51]}  d5 {[%clk 1:30:51]} 3. d3 {[%clk 1:29:16]}  g6 {[%clk 1:21:07]}
4. g3 {[%clk 1:27:06]}  Bg7 {[%clk 1:20:07]} 5. Bg2 {[%clk 1:26:09]}  d4 {[%clk 1:07:04]} 6. Nce2 {[%clk 1:24:33]}  c5 {[%clk 1:02:13]}
7. f4 {[%clk 1:24:20]}  Nc6 {[%clk 0:59:26]} 8. h3 {[%clk 1:19:59]}  e5 {[%clk 0:58:09]} 9. Nf3 {[%clk 1:20:19]}  Nge7 {[%clk 0:56:31]}
10. O-O {[%clk 1:11:46]}  O-O {[%clk 0:55:51]} 11. Nh4 {[%clk 1:07:28]}  exf4 {[%clk 0:39:01]} 12. gxf4 {[%clk 1:07:49]}  f5 {[%clk 0:37:42]}
13. Nf3 {[%clk 1:04:21]}  h6 {[%clk 0:28:42]} 14. Kh1 {[%clk 1:03:57]}  Be6 {[%clk 0:27:52]} 15. e5 {[%clk 0:56:17]}  Qd7 {[%clk 0:25:22]}
16. c4 {[%clk 0:53:57]}  dxc3 {[%clk 0:17:21]} 17. bxc3 {[%clk 0:54:22]}  Rfd8 {[%clk 0:17:20]} 18. d4 {[%clk 0:51:21]}  Bc4 {[%clk 0:17:18]}
19. Re1 {[%clk 0:35:00]}  Qc7 {[%clk 0:13:13]} 20. Ba3 {[%clk 0:22:55]}  cxd4 {[%clk 0:09:41]} 21. cxd4 {[%clk 0:18:00]}  Qa5 {[%clk 0:08:32]}
22. Qc1 {[%clk 0:16:26]}  Qa6 {[%clk 0:05:46]} 23. Ng3 {[%clk 0:14:03]}  Nd5 {[%clk 0:04:40]} 24. Nd2 {[%clk 0:13:15]}  Na5 {[%clk 0:01:36]}
25. Nxc4 {[%clk 0:10:01]}  Qxc4 {[%clk 0:01:56]} 26. Bd6 {[%clk 0:08:00]}  Nc3 {[%clk 0:00:34]} 27. Re3 {[%clk 0:06:13]}  Rac8 {[%clk 0:00:44]}
28. Qd2 {[%clk 0:02:37]}  b5 {[%clk 0:00:48]} 29. Rc1 {[%clk 0:01:18]}  b4 {[%clk 0:01:06]} 30. Rc2 {[%clk 0:00:35]}  Qb5 {[%clk 0:01:01]}
31. Qd3 {[%clk 0:00:40]}  Nc4 {[%clk 0:01:00]} 32. Rf3 {[%clk 0:00:31]}  Nxd6 {[%clk 0:01:16]} 33. exd6 {[%clk 0:01:00]}  Qb6 {[%clk 0:00:37]}
34. Ne2 {[%clk 0:00:57]}  Nxe2 {[%clk 0:00:40]} 35. Rxc8 {[%clk 0:01:10]}  Rxc8 {[%clk 0:01:07]} 36. Qxe2 {[%clk 0:01:38]}  Qxd6 {[%clk 0:01:22]}
37. d5 {[%clk 0:01:44]}  Qxd5 {[%clk 0:00:34]} 38. Ra3 {[%clk 0:00:33]}  Rc1+ {[%clk 0:00:48]} 39. Kh2 {[%clk 0:01:02]}  Qd4 {[%clk 0:00:35]}
40. Rf3 {[%clk 0:00:47]}  h5 {[%clk 0:00:34]} 41. Kg3 {[%clk 0:30:18]}  Rd1 {[%clk 0:26:15]} 42. Bf1 {[%clk 0:29:45]}  Kh7 {[%clk 0:25:20]}
43. Rf2 {[%clk 0:28:54]}  a5 {[%clk 0:23:38]} 44. Qe6 {[%clk 0:27:22]}  a4 {[%clk 0:19:07]} 45. Qc4 {[%clk 0:23:42]}  Qe3+ {[%clk 0:18:16]}
46. Rf3 {[%clk 0:22:21]}  Qg1+ {[%clk 0:18:25]} 47. Bg2 {[%clk 0:22:49]}  Rd2 {[%clk 0:18:34]} 0-1

[Event "2026 European Womens Championship"]
[Site "Batumi, GE"]
[Date "2026.05.26"]
[Round "2"]
[White "Piddubna, Bozhena"]
[Black "Wagner, Dinara"]
[Result "1/2-1/2"]
[Board "6"]
[TimeControl "5400+30"]
[WhiteFideId "34109293"]
[BlackFideId "24157570"]
[WhiteElo "2235"]
[BlackElo "2408"]
[WhiteTitle "WIM"]
[BlackTitle "IM"]
[WhiteClock "0:01:17"]
[BlackClock "0:03:50"]
[Variant "Standard"]

1. d4 {[%clk 1:30:48]}  Nf6 {[%clk 1:30:54]} 2. c4 {[%clk 1:31:11]}  e6 {[%clk 1:31:20]} 3. Nf3 {[%clk 1:31:33]}  d5 {[%clk 1:31:45]}
4. Nc3 {[%clk 1:31:55]}  Be7 {[%clk 1:32:08]} 5. Bf4 {[%clk 1:31:44]}  dxc4 {[%clk 1:32:06]} 6. e4 {[%clk 1:28:24]}  Bb4 {[%clk 1:32:16]}
7. Bxc4 {[%clk 1:21:51]}  Nxe4 {[%clk 1:32:38]} 8. O-O {[%clk 1:22:06]}  Bxc3 {[%clk 1:32:32]} 9. bxc3 {[%clk 1:10:12]}  Nxc3 {[%clk 1:32:41]}
10. Qb3 {[%clk 1:09:26]}  Nd5 {[%clk 1:33:05]} 11. Bxd5 {[%clk 1:08:52]}  Qxd5 {[%clk 1:32:43]} 12. Qa3 {[%clk 1:03:42]}  Nc6 {[%clk 1:12:14]}
13. Bxc7 {[%clk 0:58:10]}  f6 {[%clk 1:05:04]} 14. Rac1 {[%clk 0:53:54]}  Kf7 {[%clk 1:04:58]} 15. h4 {[%clk 0:46:26]}  Re8 {[%clk 0:39:23]}
16. Rc5 {[%clk 0:30:43]}  Qd7 {[%clk 0:39:14]} 17. Bf4 {[%clk 0:31:04]}  b6 {[%clk 0:35:43]} 18. Rh5 {[%clk 0:28:14]}  Kg8 {[%clk 0:36:08]}
19. d5 {[%clk 0:23:29]}  Qf7 {[%clk 0:30:43]} 20. dxc6 {[%clk 0:21:20]}  Qxh5 {[%clk 0:30:57]} 21. Rc1 {[%clk 0:20:23]}  e5 {[%clk 0:30:46]}
22. Be3 {[%clk 0:20:47]}  Be6 {[%clk 0:29:53]} 23. c7 {[%clk 0:20:25]}  Bd5 {[%clk 0:26:51]} 24. Nd2 {[%clk 0:18:26]}  Qxh4 {[%clk 0:26:57]}
25. Qd6 {[%clk 0:16:55]}  Bxa2 {[%clk 0:26:17]} 26. Qc6 {[%clk 0:14:55]}  Qg4 {[%clk 0:21:19]} 27. Ne4 {[%clk 0:09:16]}  Qe6 {[%clk 0:06:57]}
28. Nd6 {[%clk 0:09:42]}  Rec8 {[%clk 0:04:33]} 29. Qxa8 {[%clk 0:08:31]}  Rxa8 {[%clk 0:05:00]} 30. c8=Q+ {[%clk 0:08:55]}  Rxc8 {[%clk 0:05:26]}
31. Rxc8+ {[%clk 0:09:20]}  Qxc8 {[%clk 0:05:49]} 32. Nxc8 {[%clk 0:09:22]}  Be6 {[%clk 0:02:34]} 33. Nxa7 {[%clk 0:08:52]}  Bd7 {[%clk 0:03:02]}
34. Bxb6 {[%clk 0:09:13]}  Kf7 {[%clk 0:03:25]} 35. f3 {[%clk 0:02:43]}  h5 {[%clk 0:03:13]} 36. Kf2 {[%clk 0:02:41]}  Kg6 {[%clk 0:03:16]}
37. Ke2 {[%clk 0:01:21]}  Kf5 {[%clk 0:03:33]} 38. Bf2 {[%clk 0:01:31]}  e4 {[%clk 0:03:07]} 39. Ke3 {[%clk 0:01:02]}  exf3 {[%clk 0:03:32]}
40. Kxf3 {[%clk 0:01:17]}  g5 {[%clk 0:03:50]} 1/2-1/2

[Event "2026 European Womens Championship"]
[Site "Batumi, GE"]
[Date "2026.05.26"]
[Round "2"]
[White "Tsetskhladze, Mariam"]
[Black "Kiolbasa, Oliwia"]
[Result "0-1"]
[Board "7"]
[TimeControl "5400+30"]
[WhiteFideId "13623834"]
[BlackFideId "1154613"]
[WhiteElo "2234"]
[BlackElo "2397"]
[WhiteTitle "WFM"]
[BlackTitle "IM"]
[WhiteClock "0:00:34"]
[BlackClock "0:03:17"]
[Variant "Standard"]

1. e4 {[%clk 1:30:57]}  e5 {[%clk 1:29:36]} 2. Nf3 {[%clk 1:31:23]}  Nc6 {[%clk 1:30:01]} 3. Bc4 {[%clk 1:31:46]}  Nf6 {[%clk 1:27:43]}
4. d4 {[%clk 1:32:05]}  exd4 {[%clk 1:26:43]} 5. e5 {[%clk 1:32:29]}  Ne4 {[%clk 1:18:49]} 6. Qe2 {[%clk 1:32:15]}  Nc5 {[%clk 1:19:11]}
7. O-O {[%clk 1:32:27]}  Be7 {[%clk 1:17:14]} 8. Rd1 {[%clk 1:18:47]}  Ne6 {[%clk 1:17:02]} 9. Bxe6 {[%clk 1:17:19]}  dxe6 {[%clk 1:12:09]}
10. Nbd2 {[%clk 1:07:37]}  f6 {[%clk 1:00:51]} 11. Nb3 {[%clk 1:00:35]}  fxe5 {[%clk 0:59:28]} 12. Nxe5 {[%clk 0:58:27]}  Nxe5 {[%clk 0:54:50]}
13. Qxe5 {[%clk 0:58:48]}  Bf6 {[%clk 0:55:05]} 14. Qe4 {[%clk 0:53:28]}  O-O {[%clk 0:49:23]} 15. c3 {[%clk 0:44:18]}  e5 {[%clk 0:47:10]}
16. cxd4 {[%clk 0:42:08]}  Be6 {[%clk 0:41:45]} 17. Be3 {[%clk 0:35:14]}  Bd5 {[%clk 0:41:21]} 18. Qc2 {[%clk 0:31:49]}  c6 {[%clk 0:41:35]}
19. dxe5 {[%clk 0:24:51]}  Bxe5 {[%clk 0:39:36]} 20. Nc5 {[%clk 0:18:16]}  Qh4 {[%clk 0:21:55]} 21. h3 {[%clk 0:17:39]}  Rf6 {[%clk 0:20:29]}
22. Nd7 {[%clk 0:15:12]}  Rg6 {[%clk 0:19:38]} 23. Nxe5 {[%clk 0:10:15]}  Rxg2+ {[%clk 0:19:42]} 24. Kf1 {[%clk 0:10:39]}  Qxh3 {[%clk 0:19:12]}
25. Qc3 {[%clk 0:04:52]}  Re8 {[%clk 0:14:02]} 26. Ke1 {[%clk 0:04:51]}  Qf5 {[%clk 0:12:42]} 27. f4 {[%clk 0:00:33]}  g5 {[%clk 0:06:24]}
28. Rd2 {[%clk 0:00:34]}  Rg3 {[%clk 0:05:44]} 29. Qd3 {[%clk 0:00:37]}  Qh3 {[%clk 0:04:20]} 30. Re2 {[%clk 0:00:34]}  gxf4 {[%clk 0:04:00]}
31. Qd4 {[%clk 0:00:34]}  fxe3 {[%clk 0:03:17]} 0-1

[Event "2026 European Womens Championship"]
[Site "Batumi, GE"]
[Date "2026.05.26"]
[Round "2"]
[White "Badelka, Olga"]
[Black "Orian, Noga"]
[Result "1/2-1/2"]
[Board "8"]
[TimeControl "5400+30"]
[WhiteFideId "13509926"]
[BlackFideId "2836475"]
[WhiteElo "2392"]
[BlackElo "2231"]
[WhiteTitle "IM"]
[BlackTitle "WIM"]
[WhiteClock "0:00:39"]
[BlackClock "0:01:14"]
[Variant "Standard"]

1. c4 {[%clk 1:30:56]}  e5 {[%clk 1:28:39]} 2. Nc3 {[%clk 1:31:19]}  Nf6 {[%clk 1:29:00]} 3. Nf3 {[%clk 1:31:42]}  Nc6 {[%clk 1:29:25]}
4. d3 {[%clk 1:32:00]}  Bb4 {[%clk 1:29:10]} 5. Bd2 {[%clk 1:32:21]}  d5 {[%clk 1:28:56]} 6. cxd5 {[%clk 1:32:35]}  Nxd5 {[%clk 1:29:08]}
7. e3 {[%clk 1:30:41]}  O-O {[%clk 1:27:25]} 8. Be2 {[%clk 1:30:52]}  Re8 {[%clk 1:24:36]} 9. O-O {[%clk 1:29:43]}  Bxc3 {[%clk 1:22:48]}
10. bxc3 {[%clk 1:28:38]}  e4 {[%clk 1:21:52]} 11. dxe4 {[%clk 1:26:46]}  Nf6 {[%clk 1:21:32]} 12. Nd4 {[%clk 1:10:02]}  Nxe4 {[%clk 1:21:29]}
13. Be1 {[%clk 1:10:27]}  Qf6 {[%clk 1:14:20]} 14. f3 {[%clk 1:04:35]}  Nc5 {[%clk 1:12:26]} 15. Bf2 {[%clk 1:04:22]}  Bd7 {[%clk 1:05:12]}
16. e4 {[%clk 1:00:08]}  Rad8 {[%clk 1:00:16]} 17. Qe1 {[%clk 0:55:52]}  Rc8 {[%clk 0:46:37]} 18. Rd1 {[%clk 0:54:56]}  Ne5 {[%clk 0:44:51]}
19. Nb3 {[%clk 0:33:21]}  Ne6 {[%clk 0:35:55]} 20. Nc5 {[%clk 0:25:58]}  Bc6 {[%clk 0:31:32]} 21. Nxe6 {[%clk 0:22:19]}  Qxe6 {[%clk 0:28:30]}
22. Bd4 {[%clk 0:19:34]}  Ng6 {[%clk 0:25:16]} 23. Rf2 {[%clk 0:17:18]}  Rcd8 {[%clk 0:22:06]} 24. Rd2 {[%clk 0:16:19]}  Nf4 {[%clk 0:18:56]}
25. Bf1 {[%clk 0:16:11]}  a6 {[%clk 0:17:50]} 26. Qe3 {[%clk 0:13:31]}  Ng6 {[%clk 0:17:27]} 27. Qg5 {[%clk 0:13:40]}  Qe7 {[%clk 0:13:43]}
28. Qg3 {[%clk 0:10:37]}  Rd7 {[%clk 0:12:18]} 29. f4 {[%clk 0:09:11]}  Qh4 {[%clk 0:06:12]} 30. Qxh4 {[%clk 0:06:18]}  Nxh4 {[%clk 0:06:41]}
31. g3 {[%clk 0:02:45]}  Ng6 {[%clk 0:07:09]} 32. Bh3 {[%clk 0:02:43]}  Rdd8 {[%clk 0:06:43]} 33. e5 {[%clk 0:03:07]}  Bb5 {[%clk 0:06:27]}
34. Bg2 {[%clk 0:03:04]}  b6 {[%clk 0:05:58]} 35. Be3 {[%clk 0:01:29]}  Ne7 {[%clk 0:04:15]} 36. g4 {[%clk 0:01:42]}  Bc4 {[%clk 0:01:38]}
37. f5 {[%clk 0:01:25]}  Nd5 {[%clk 0:01:09]} 38. Bg5 {[%clk 0:01:40]}  f6 {[%clk 0:00:39]} 39. exf6 {[%clk 0:01:09]}  Re1+ {[%clk 0:00:33]}
40. Bf1 {[%clk 0:00:59]}  gxf6 {[%clk 0:00:33]} 41. Bxf6 {[%clk 0:21:46]}  Rd6 {[%clk 0:15:26]} 42. Bd4 {[%clk 0:10:16]}  c5 {[%clk 0:12:32]}
43. Be5 {[%clk 0:05:58]}  Rh6 {[%clk 0:08:02]} 44. f6 {[%clk 0:03:09]}  Kf7 {[%clk 0:07:46]} 45. Bg3 {[%clk 0:03:16]}  Bxf1 {[%clk 0:05:11]}
46. Rxf1 {[%clk 0:03:10]}  Rxf1+ {[%clk 0:05:36]} 47. Kxf1 {[%clk 0:03:38]}  Rxf6+ {[%clk 0:05:59]} 48. Kg2 {[%clk 0:02:47]}  Nf4+ {[%clk 0:03:09]}
49. Bxf4 {[%clk 0:00:39]}  Rxf4 {[%clk 0:03:37]} 50. Kg3 {[%clk 0:01:04]}  Rc4 {[%clk 0:03:03]} 51. Rd7+ {[%clk 0:01:32]}  Kg6 {[%clk 0:02:06]}
52. Rd6+ {[%clk 0:01:49]}  Kg7 {[%clk 0:01:59]} 53. Rxb6 {[%clk 0:01:18]}  Rxc3+ {[%clk 0:02:28]} 54. Kf4 {[%clk 0:01:40]}  Rh3 {[%clk 0:00:54]}
55. Rxa6 {[%clk 0:00:45]}  Rxh2 {[%clk 0:01:14]} 56. Rc6 {[%clk 0:00:39]} 1/2-1/2

[Event "2026 European Womens Championship"]
[Site "Batumi, GE"]
[Date "2026.05.26"]
[Round "2"]
[White "Kirtadze, Anastasia"]
[Black "Vega Gutierrez, Sabrina"]
[Result "0-1"]
[Board "9"]
[TimeControl "5400+30"]
[WhiteFideId "13622714"]
[BlackFideId "2219026"]
[WhiteElo "2233"]
[BlackElo "2375"]
[WhiteTitle "WIM"]
[BlackTitle "IM"]
[WhiteClock "0:19:04"]
[BlackClock "0:00:57"]
[Variant "Standard"]

1. e4 {[%clk 1:30:54]}  c5 {[%clk 1:30:54]} 2. Nf3 {[%clk 1:31:19]}  e6 {[%clk 1:31:17]} 3. d4 {[%clk 1:31:41]}  cxd4 {[%clk 1:31:40]}
4. Nxd4 {[%clk 1:32:07]}  Nf6 {[%clk 1:32:01]} 5. Nc3 {[%clk 1:32:25]}  Nc6 {[%clk 1:32:23]} 6. Nxc6 {[%clk 1:32:50]}  bxc6 {[%clk 1:32:46]}
7. e5 {[%clk 1:33:15]}  Nd5 {[%clk 1:33:08]} 8. Ne4 {[%clk 1:33:39]}  Qc7 {[%clk 1:33:28]} 9. f4 {[%clk 1:34:02]}  Qb6 {[%clk 1:33:49]}
10. c4 {[%clk 1:34:00]}  Ne3 {[%clk 1:34:03]} 11. Qd3 {[%clk 1:33:44]}  Nf5 {[%clk 1:34:21]} 12. g4 {[%clk 1:14:23]}  Nd4 {[%clk 1:34:41]}
13. Bg2 {[%clk 1:08:22]}  h5 {[%clk 1:34:57]} 14. g5 {[%clk 1:02:59]}  h4 {[%clk 1:35:19]} 15. h3 {[%clk 1:01:41]}  Bb7 {[%clk 1:35:08]}
16. b3 {[%clk 0:51:41]}  O-O-O {[%clk 1:32:51]} 17. Bb2 {[%clk 0:47:25]}  d5 {[%clk 1:30:55]} 18. Qxd4 {[%clk 0:26:21]}  Qxd4 {[%clk 1:23:22]}
19. Bxd4 {[%clk 0:25:36]}  dxe4 {[%clk 1:23:40]} 20. O-O-O {[%clk 0:22:29]}  Ba3+ {[%clk 1:12:48]} 21. Bb2 {[%clk 0:14:32]}  Bxb2+ {[%clk 1:10:13]}
22. Kxb2 {[%clk 0:14:56]}  c5 {[%clk 1:10:35]} 23. Rhe1 {[%clk 0:12:00]}  a5 {[%clk 0:42:45]} 24. Bxe4 {[%clk 0:00:37]}  Bxe4 {[%clk 0:42:03]}
25. Rxd8+ {[%clk 0:01:03]}  Rxd8 {[%clk 0:42:19]} 26. Rxe4 {[%clk 0:01:31]}  Rd3 {[%clk 0:42:10]} 27. f5 {[%clk 0:01:14]}  exf5 {[%clk 0:39:13]}
28. Rxh4 {[%clk 0:01:34]}  Kd7 {[%clk 0:38:13]} 29. Rh7 {[%clk 0:00:41]}  Ke6 {[%clk 0:38:01]} 30. Rxg7 {[%clk 0:00:35]}  f4 {[%clk 0:29:25]}
31. g6 {[%clk 0:00:41]}  fxg6 {[%clk 0:29:09]} 32. Rxg6+ {[%clk 0:01:04]}  Kxe5 {[%clk 0:29:32]} 33. Rg5+ {[%clk 0:00:35]}  Ke4 {[%clk 0:23:48]}
34. Kc2 {[%clk 0:00:34]}  Rxh3 {[%clk 0:21:34]} 35. Rxc5 {[%clk 0:00:43]}  f3 {[%clk 0:21:13]} 36. Kd2 {[%clk 0:00:37]}  Rh1 {[%clk 0:19:05]}
37. Rc8 {[%clk 0:00:35]}  f2 {[%clk 0:19:04]} 38. Re8+ {[%clk 0:00:57]}  Kd4 {[%clk 0:19:23]} 0-1

[Event "2026 European Womens Championship"]
[Site "Batumi, GE"]
[Date "2026.05.26"]
[Round "2"]
[White "Mammadzada, Gunay"]
[Black "Kubicka, Anna"]
[Result "1/2-1/2"]
[Board "10"]
[TimeControl "5400+30"]
[WhiteFideId "13403729"]
[BlackFideId "1152254"]
[WhiteElo "2374"]
[BlackElo "2226"]
[WhiteTitle "IM"]
[BlackTitle "WIM"]
[WhiteClock "0:00:38"]
[BlackClock "0:01:01"]
[Variant "Standard"]

1. e4 {[%clk 1:30:55]}  e5 {[%clk 1:30:42]} 2. Nf3 {[%clk 1:31:20]}  Nc6 {[%clk 1:31:02]} 3. Bb5 {[%clk 1:31:33]}  a6 {[%clk 1:31:09]}
4. Ba4 {[%clk 1:31:54]}  Nf6 {[%clk 1:30:52]} 5. O-O {[%clk 1:31:45]}  d6 {[%clk 1:30:50]} 6. Re1 {[%clk 1:31:55]}  Be7 {[%clk 1:30:55]}
7. Bxc6+ {[%clk 1:27:21]}  bxc6 {[%clk 1:31:17]} 8. d4 {[%clk 1:27:49]}  Nd7 {[%clk 1:26:51]} 9. dxe5 {[%clk 1:06:55]}  dxe5 {[%clk 1:26:47]}
10. Nbd2 {[%clk 1:07:11]}  O-O {[%clk 1:13:12]} 11. Nc4 {[%clk 1:06:49]}  Qe8 {[%clk 0:56:04]} 12. c3 {[%clk 1:00:32]}  Bf6 {[%clk 0:40:36]}
13. Be3 {[%clk 0:57:08]}  a5 {[%clk 0:34:46]} 14. b4 {[%clk 0:50:05]}  axb4 {[%clk 0:32:47]} 15. cxb4 {[%clk 0:50:31]}  Qe6 {[%clk 0:32:18]}
16. Qc2 {[%clk 0:50:38]}  Be7 {[%clk 0:24:28]} 17. Qc3 {[%clk 0:35:31]}  Ra4 {[%clk 0:20:37]} 18. a3 {[%clk 0:34:29]}  c5 {[%clk 0:20:34]}
19. Qc2 {[%clk 0:30:31]}  Qa6 {[%clk 0:18:18]} 20. Ncxe5 {[%clk 0:24:55]}  Nxe5 {[%clk 0:18:16]} 21. Nxe5 {[%clk 0:25:21]}  cxb4 {[%clk 0:18:12]}
22. Nc6 {[%clk 0:09:01]}  Bd6 {[%clk 0:15:20]} 23. e5 {[%clk 0:07:29]}  b3 {[%clk 0:15:11]} 24. Qxb3 {[%clk 0:07:45]}  Qxc6 {[%clk 0:15:34]}
25. Rac1 {[%clk 0:04:22]}  Qa8 {[%clk 0:14:34]} 26. exd6 {[%clk 0:04:48]}  Rg4 {[%clk 0:12:48]} 27. g3 {[%clk 0:04:38]}  cxd6 {[%clk 0:12:01]}
28. Bf4 {[%clk 0:03:24]}  Rg6 {[%clk 0:10:32]} 29. Rc7 {[%clk 0:02:51]}  Be6 {[%clk 0:05:34]} 30. Qb6 {[%clk 0:00:41]}  Bh3 {[%clk 0:02:21]}
31. Rb7 {[%clk 0:00:55]}  d5 {[%clk 0:01:33]} 32. Qa7 {[%clk 0:00:37]}  Ra6 {[%clk 0:00:49]} 33. Qxa8 {[%clk 0:01:00]}  Rfxa8 {[%clk 0:01:01]}
34. Rb3 {[%clk 0:00:38]} 1/2-1/2

[Event "2026 European Womens Championship"]
[Site "Batumi, GE"]
[Date "2026.05.26"]
[Round "2"]
[White "Hryzlova, Sofiia"]
[Black "Sivanandan, Bodhana"]
[Result "1-0"]
[Board "11"]
[TimeControl "5400+30"]
[WhiteFideId "14174669"]
[BlackFideId "497592"]
[WhiteElo "2226"]
[BlackElo "2374"]
[WhiteTitle "WIM"]
[BlackTitle "FM"]
[WhiteClock "0:22:43"]
[BlackClock "0:05:13"]
[Variant "Standard"]

1. e4 {[%clk 1:29:38]}  e5 {[%clk 1:29:10]} 2. Nf3 {[%clk 1:29:50]}  Nf6 {[%clk 1:29:08]} 3. d4 {[%clk 1:30:01]}  Nxe4 {[%clk 1:29:04]}
4. Bd3 {[%clk 1:30:18]}  d5 {[%clk 1:29:00]} 5. Nxe5 {[%clk 1:30:30]}  Nd7 {[%clk 1:28:33]} 6. Nc3 {[%clk 1:30:48]}  Bb4 {[%clk 1:27:40]}
7. O-O {[%clk 1:25:50]}  Nxe5 {[%clk 1:27:04]} 8. dxe5 {[%clk 1:26:09]}  Nxc3 {[%clk 1:26:57]} 9. bxc3 {[%clk 1:26:33]}  Bxc3 {[%clk 1:27:16]}
10. Rb1 {[%clk 1:26:59]}  O-O {[%clk 1:26:53]} 11. Bxh7+ {[%clk 1:27:17]}  Kxh7 {[%clk 1:27:00]} 12. Qd3+ {[%clk 1:27:41]}  Kg8 {[%clk 1:27:16]}
13. Qxc3 {[%clk 1:28:04]}  a5 {[%clk 1:27:07]} 14. Qg3 {[%clk 1:28:07]}  Ra6 {[%clk 1:26:08]} 15. Bg5 {[%clk 1:26:47]}  Qd7 {[%clk 1:25:47]}
16. f4 {[%clk 1:26:55]}  Qf5 {[%clk 1:21:07]} 17. Rb3 {[%clk 1:26:55]}  Rc6 {[%clk 1:12:39]} 18. Bf6 {[%clk 1:15:47]}  Qh7 {[%clk 0:55:35]}
19. f5 {[%clk 1:09:56]}  Qh6 {[%clk 0:42:52]} 20. Qf2 {[%clk 0:56:09]}  Rxf6 {[%clk 0:41:17]} 21. exf6 {[%clk 0:56:20]}  Qxf6 {[%clk 0:41:29]}
22. Qf4 {[%clk 0:51:36]}  c6 {[%clk 0:39:26]} 23. Re3 {[%clk 0:50:34]}  d4 {[%clk 0:35:34]} 24. Re5 {[%clk 0:49:17]}  Rd8 {[%clk 0:34:16]}
25. Rfe1 {[%clk 0:47:51]}  Be6 {[%clk 0:32:43]} 26. g4 {[%clk 0:45:16]}  g5 {[%clk 0:31:03]} 27. Qd2 {[%clk 0:35:24]}  Bxa2 {[%clk 0:28:31]}
28. Qxa5 {[%clk 0:33:57]}  Bd5 {[%clk 0:25:13]} 29. Re8+ {[%clk 0:24:46]}  Rxe8 {[%clk 0:25:31]} 30. Rxe8+ {[%clk 0:25:12]}  Kg7 {[%clk 0:23:22]}
31. Qa3 {[%clk 0:21:44]}  d3 {[%clk 0:15:30]} 32. Qxd3 {[%clk 0:21:44]}  Qa1+ {[%clk 0:12:06]} 33. Kf2 {[%clk 0:21:44]}  b5 {[%clk 0:09:51]}
34. Qe3 {[%clk 0:20:10]}  Qf6 {[%clk 0:08:56]} 35. c3 {[%clk 0:19:42]}  Qh6 {[%clk 0:02:22]} 36. Qe5+ {[%clk 0:19:42]}  f6 {[%clk 0:02:36]}
37. Qe7+ {[%clk 0:20:04]}  Bf7 {[%clk 0:02:58]} 38. Qf8+ {[%clk 0:20:24]}  Kh7 {[%clk 0:03:20]} 39. Qxf7+ {[%clk 0:20:47]}  Qg7 {[%clk 0:03:42]}
40. Qh5+ {[%clk 0:21:11]}  Qh6 {[%clk 0:04:04]} 41. Re7+ {[%clk 0:21:32]}  Kg8 {[%clk 0:04:27]} 42. Qf7+ {[%clk 0:21:52]}  Kh8 {[%clk 0:04:50]}
43. Re8+ {[%clk 0:22:18]}  Qf8 {[%clk 0:05:13]} 44. Rxf8# {[%clk 0:22:43]} 1-0